[Event "Titled Tuesday Blitz August 22 Early 2023"]
[White "Acosta Cruz, Oscar Yosimar"]
[Black "Paichadze, Luka"]
[WhiteFideId "5111269"]
[BlackFideId "13602934"]
[WhiteElo "2271"]
[BlackElo "2830"]
[Result "0-1"]
[Round "3"]
[TimeControl "180+1"]
[Date "2023.08.22"]
[WhiteClock "0:00:05"]
[BlackClock "0:00:27"]
[Board "53"]

1. d4 {[%clk 0:02:57]}  Nf6 {[%clk 0:02:59]} 2. c4 {[%clk 0:02:53]}  e6 {[%clk 0:03:00]} 3. Nf3 {[%clk 0:02:51]}  Bb4+ {[%clk 0:02:58]} 4. Bd2 {[%clk 0:02:39]}  a5 {[%clk 0:02:57]} 5. g3 {[%clk 0:02:36]}  b6 {[%clk 0:02:51]} 6. Bg2 {[%clk 0:02:33]}  Bb7 {[%clk 0:02:51]} 7. O-O {[%clk 0:02:29]}  O-O {[%clk 0:02:51]} 8. a3 {[%clk 0:02:26]}  Bxd2 {[%clk 0:02:50]} 9. Qxd2 {[%clk 0:02:24]}  d6 {[%clk 0:02:48]} 10. Nc3 {[%clk 0:02:19]}  Nbd7 {[%clk 0:02:48]} 11. Qc2 {[%clk 0:02:16]}  Re8 {[%clk 0:02:38]} 12. e4 {[%clk 0:02:15]}  e5 {[%clk 0:02:37]} 13. Rfe1 {[%clk 0:02:11]}  a4 {[%clk 0:02:18]} 14. Rad1 {[%clk 0:01:59]}  exd4 {[%clk 0:02:14]} 15. Nxd4 {[%clk 0:02:00]}  Nc5 {[%clk 0:02:12]} 16. Nd5 {[%clk 0:01:52]}  Nfd7 {[%clk 0:01:48]} 17. f4 {[%clk 0:01:29]}  Ne6 {[%clk 0:01:36]} 18. Nb5 {[%clk 0:01:05]}  Rf8 {[%clk 0:01:17]} 19. f5 {[%clk 0:00:50]}  Bxd5 {[%clk 0:01:17]} 20. Rxd5 {[%clk 0:00:36]}  Nec5 {[%clk 0:01:12]} 21. e5 {[%clk 0:00:23]}  dxe5 {[%clk 0:00:46]} 22. Red1 {[%clk 0:00:22]}  Qe7 {[%clk 0:00:34]} 23. Nxc7 {[%clk 0:00:20]}  Rac8 {[%clk 0:00:35]} 24. Nb5 {[%clk 0:00:18]}  Nf6 {[%clk 0:00:34]} 25. Rd6 {[%clk 0:00:17]}  e4 {[%clk 0:00:35]} 26. Rxb6 {[%clk 0:00:15]}  Nd3 {[%clk 0:00:35]} 27. Rd6 {[%clk 0:00:12]}  Qe5 {[%clk 0:00:34]} 28. Bxe4 {[%clk 0:00:10]}  Nxe4 {[%clk 0:00:28]} 29. Rd2 {[%clk 0:00:05]}  Nxd6 {[%clk 0:00:27]} 0-1


[Site "https://www.chess.com"]

[Event "Titled Tuesday Blitz August 22 Early 2023"]
[White "Klukin, Kirill"]
[Black "parintele_chess"]
[WhiteFideId "24199273"]
[WhiteElo "2820"]
[BlackElo "2236"]
[Result "1-0"]
[Round "3"]
[TimeControl "180+1"]
[Date "2023.08.22"]
[WhiteClock "0:01:34"]
[BlackClock "0:00:15"]
[Board "54"]

1. d4 {[%clk 0:03:00]}  Nf6 {[%clk 0:02:45]} 2. Nf3 {[%clk 0:02:57]}  e6 {[%clk 0:02:45]} 3. e3 {[%clk 0:02:57]}  b6 {[%clk 0:02:41]} 4. Bd3 {[%clk 0:02:57]}  Bb7 {[%clk 0:02:41]} 5. O-O {[%clk 0:02:58]}  Be7 {[%clk 0:02:37]} 6. c4 {[%clk 0:02:58]}  d5 {[%clk 0:02:36]} 7. cxd5 {[%clk 0:02:58]}  Nxd5 {[%clk 0:02:32]} 8. e4 {[%clk 0:02:49]}  Nf6 {[%clk 0:02:32]} 9. Nc3 {[%clk 0:02:49]}  O-O {[%clk 0:02:31]} 10. Qe2 {[%clk 0:02:46]}  c5 {[%clk 0:02:29]} 11. dxc5 {[%clk 0:02:45]}  Bxc5 {[%clk 0:02:25]} 12. Bg5 {[%clk 0:02:45]}  Be7 {[%clk 0:02:25]} 13. Rfd1 {[%clk 0:02:43]}  Nbd7 {[%clk 0:02:07]} 14. Bb5 {[%clk 0:02:42]}  a6 {[%clk 0:01:49]} 15. Bxf6 {[%clk 0:02:35]}  axb5 {[%clk 0:01:47]} 16. Qxb5 {[%clk 0:02:36]}  Bxf6 {[%clk 0:01:33]} 17. Qxd7 {[%clk 0:02:32]}  Qxd7 {[%clk 0:01:29]} 18. Rxd7 {[%clk 0:02:23]}  Bxc3 {[%clk 0:01:29]} 19. bxc3 {[%clk 0:02:20]}  Bxe4 {[%clk 0:01:29]} 20. Nd2 {[%clk 0:02:11]}  Bc6 {[%clk 0:01:14]} 21. Rc7 {[%clk 0:02:07]}  Rfc8 {[%clk 0:01:10]} 22. Rxc8+ {[%clk 0:02:06]}  Rxc8 {[%clk 0:01:11]} 23. Rb1 {[%clk 0:02:01]}  Bd5 {[%clk 0:00:49]} 24. Rxb6 {[%clk 0:01:40]}  Bxa2 {[%clk 0:00:49]} 25. f3 {[%clk 0:01:40]}  g6 {[%clk 0:00:38]} 26. Ra6 {[%clk 0:01:40]}  Bc4 {[%clk 0:00:32]} 27. Ra3 {[%clk 0:01:40]}  Bd5 {[%clk 0:00:27]} 28. Kf2 {[%clk 0:01:39]}  Ra8 {[%clk 0:00:27]} 29. Rxa8+ {[%clk 0:01:34]}  Bxa8 {[%clk 0:00:28]} 30. Ke3 {[%clk 0:01:35]}  Kf8 {[%clk 0:00:28]} 31. g3 {[%clk 0:01:35]}  Ke7 {[%clk 0:00:28]} 32. f4 {[%clk 0:01:36]}  Kd6 {[%clk 0:00:28]} 33. Kd4 {[%clk 0:01:36]}  f6 {[%clk 0:00:28]} 34. Nc4+ {[%clk 0:01:34]}  Kc6 {[%clk 0:00:23]} 35. Ne3 {[%clk 0:01:34]}  Kd6 {[%clk 0:00:23]} 36. Ng4 {[%clk 0:01:33]}  Ke7 {[%clk 0:00:19]} 37. c4 {[%clk 0:01:31]}  h5 {[%clk 0:00:17]} 38. Ne3 {[%clk 0:01:32]}  Bf3 {[%clk 0:00:16]} 39. c5 {[%clk 0:01:31]}  Kd7 {[%clk 0:00:17]} 40. Nc2 {[%clk 0:01:30]}  g5 {[%clk 0:00:12]} 41. fxg5 {[%clk 0:01:29]}  fxg5 {[%clk 0:00:13]} 42. Ke5 {[%clk 0:01:29]}  Kc6 {[%clk 0:00:12]} 43. Nd4+ {[%clk 0:01:29]}  Kxc5 {[%clk 0:00:12]} 44. Nxf3 {[%clk 0:01:30]}  h4 {[%clk 0:00:09]} 45. Nxg5 {[%clk 0:01:29]}  hxg3 {[%clk 0:00:09]} 46. hxg3 {[%clk 0:01:30]}  Kc4 {[%clk 0:00:09]} 47. Nxe6 {[%clk 0:01:30]}  Kd3 {[%clk 0:00:09]} 48. g4 {[%clk 0:01:31]}  Ke3 {[%clk 0:00:10]} 49. g5 {[%clk 0:01:31]}  Kf3 {[%clk 0:00:11]} 50. g6 {[%clk 0:01:32]}  Ke3 {[%clk 0:00:12]} 51. g7 {[%clk 0:01:33]}  Kf3 {[%clk 0:00:13]} 52. g8=Q {[%clk 0:01:34]}  Ke3 {[%clk 0:00:14]} 53. Qg3+ {[%clk 0:01:34]}  Ke2 {[%clk 0:00:14]} 54. Kd4 {[%clk 0:01:33]}  Kd2 {[%clk 0:00:14]} 55. Qf2+ {[%clk 0:01:34]}  Kc1 {[%clk 0:00:14]} 56. Kc3 {[%clk 0:01:34]}  Kb1 {[%clk 0:00:15]} 57. Qb2# {[%clk 0:01:34]} 1-0


[Site "https://www.chess.com"]

[Event "Titled Tuesday Blitz August 22 Early 2023"]
[White "Pichot, Alan"]
[Black "Sadykov, Ramil"]
[WhiteFideId "110973"]
[BlackFideId "24113590"]
[WhiteElo "2899"]
[BlackElo "2615"]
[Result "1-0"]
[Round "3"]
[TimeControl "180+1"]
[Date "2023.08.22"]
[WhiteClock "0:01:12"]
[BlackClock "0:00:02"]
[Board "57"]

1. c4 {[%clk 0:02:56]}  e6 {[%clk 0:02:59]} 2. g3 {[%clk 0:02:56]}  d5 {[%clk 0:02:59]} 3. Bg2 {[%clk 0:02:56]}  Nf6 {[%clk 0:03:00]} 4. Nf3 {[%clk 0:02:56]}  Be7 {[%clk 0:02:56]} 5. O-O {[%clk 0:02:56]}  O-O {[%clk 0:02:57]} 6. d4 {[%clk 0:02:57]}  c6 {[%clk 0:02:56]} 7. Qc2 {[%clk 0:02:56]}  Nbd7 {[%clk 0:02:53]} 8. Nbd2 {[%clk 0:02:55]}  b6 {[%clk 0:02:54]} 9. e4 {[%clk 0:02:54]}  dxe4 {[%clk 0:02:21]} 10. Nxe4 {[%clk 0:02:53]}  Nxe4 {[%clk 0:02:22]} 11. Qxe4 {[%clk 0:02:53]}  Ba6 {[%clk 0:02:22]} 12. b3 {[%clk 0:02:48]}  Rc8 {[%clk 0:02:09]} 13. Bf4 {[%clk 0:02:47]}  Nf6 {[%clk 0:01:38]} 14. Qc2 {[%clk 0:02:44]}  Bb7 {[%clk 0:01:24]} 15. Rad1 {[%clk 0:02:42]}  Bb4 {[%clk 0:01:17]} 16. Ne5 {[%clk 0:02:38]}  Qe7 {[%clk 0:01:16]} 17. Bg5 {[%clk 0:02:31]}  h6 {[%clk 0:01:05]} 18. Bxf6 {[%clk 0:02:28]}  gxf6 {[%clk 0:01:06]} 19. Ng4 {[%clk 0:02:23]}  Kg7 {[%clk 0:01:06]} 20. Qc1 {[%clk 0:02:20]}  Rh8 {[%clk 0:01:05]} 21. c5 {[%clk 0:01:59]}  bxc5 {[%clk 0:00:53]} 22. a3 {[%clk 0:02:00]}  h5 {[%clk 0:00:39]} 23. axb4 {[%clk 0:01:54]}  hxg4 {[%clk 0:00:39]} 24. dxc5 {[%clk 0:01:54]}  Ba6 {[%clk 0:00:34]} 25. Rfe1 {[%clk 0:01:54]}  f5 {[%clk 0:00:31]} 26. Rd6 {[%clk 0:01:52]}  Bb5 {[%clk 0:00:28]} 27. Qf4 {[%clk 0:01:43]}  Qf6 {[%clk 0:00:24]} 28. Red1 {[%clk 0:01:31]}  Rhd8 {[%clk 0:00:22]} 29. h4 {[%clk 0:01:30]}  gxh3 {[%clk 0:00:20]} 30. Bxh3 {[%clk 0:01:31]}  Rxd6 {[%clk 0:00:19]} 31. cxd6 {[%clk 0:01:28]}  Rd8 {[%clk 0:00:20]} 32. Qe3 {[%clk 0:01:22]}  e5 {[%clk 0:00:18]} 33. d7 {[%clk 0:01:19]}  f4 {[%clk 0:00:12]} 34. gxf4 {[%clk 0:01:18]}  Qxf4 {[%clk 0:00:11]} 35. Qxf4 {[%clk 0:01:12]}  exf4 {[%clk 0:00:12]} 36. Ra1 {[%clk 0:01:11]}  Kf6 {[%clk 0:00:09]} 37. Re1 {[%clk 0:01:12]}  Rh8 {[%clk 0:00:02]} 38. Re8 {[%clk 0:01:12]} 1-0


[Site "https://www.chess.com"]

[Event "Titled Tuesday Blitz August 22 Early 2023"]
[White "NovoselovRoman"]
[Black "JeRoma71"]
[WhiteElo "2568"]
[BlackElo "2876"]
[Result "0-1"]
[Round "3"]
[TimeControl "180+1"]
[Date "2023.08.22"]
[WhiteClock "0:00:00"]
[BlackClock "0:00:38"]
[Board "58"]

1. e4 {[%clk 0:02:55]}  e6 {[%clk 0:02:59]} 2. d4 {[%clk 0:02:55]}  d5 {[%clk 0:02:59]} 3. Nc3 {[%clk 0:02:56]}  Bb4 {[%clk 0:02:58]} 4. exd5 {[%clk 0:02:56]}  exd5 {[%clk 0:02:59]} 5. Bd3 {[%clk 0:02:57]}  Nc6 {[%clk 0:02:59]} 6. Ne2 {[%clk 0:02:58]}  Nge7 {[%clk 0:02:59]} 7. Bg5 {[%clk 0:02:57]}  f6 {[%clk 0:02:58]} 8. Bh4 {[%clk 0:02:57]}  Bf5 {[%clk 0:02:58]} 9. Bg3 {[%clk 0:02:53]}  Qd7 {[%clk 0:02:57]} 10. O-O {[%clk 0:02:52]}  O-O {[%clk 0:02:57]} 11. a3 {[%clk 0:02:46]}  Bxc3 {[%clk 0:02:56]} 12. bxc3 {[%clk 0:02:43]}  b6 {[%clk 0:02:55]} 13. c4 {[%clk 0:02:41]}  Na5 {[%clk 0:02:48]} 14. cxd5 {[%clk 0:02:39]}  Nxd5 {[%clk 0:02:45]} 15. c4 {[%clk 0:02:28]}  Ne7 {[%clk 0:02:44]} 16. Re1 {[%clk 0:02:25]}  Rfe8 {[%clk 0:02:42]} 17. Rc1 {[%clk 0:02:15]}  Rad8 {[%clk 0:02:40]} 18. d5 {[%clk 0:02:11]}  Nb7 {[%clk 0:02:16]} 19. Nd4 {[%clk 0:02:06]}  Bxd3 {[%clk 0:02:16]} 20. Qxd3 {[%clk 0:02:07]}  Nc5 {[%clk 0:02:16]} 21. Qf3 {[%clk 0:02:03]}  Ng6 {[%clk 0:02:12]} 22. h4 {[%clk 0:01:52]}  Ne5 {[%clk 0:02:04]} 23. Bxe5 {[%clk 0:01:49]}  fxe5 {[%clk 0:02:05]} 24. Nc6 {[%clk 0:01:49]}  e4 {[%clk 0:02:05]} 25. Qh5 {[%clk 0:01:34]}  Nd3 {[%clk 0:02:00]} 26. Nxd8 {[%clk 0:01:12]}  Qxd8 {[%clk 0:02:00]} 27. Rcd1 {[%clk 0:01:03]}  Nxe1 {[%clk 0:01:54]} 28. Rxe1 {[%clk 0:01:04]}  Qe7 {[%clk 0:01:52]} 29. Re3 {[%clk 0:00:59]}  a5 {[%clk 0:01:46]} 30. Qg4 {[%clk 0:00:54]}  Qe5 {[%clk 0:01:39]} 31. h5 {[%clk 0:00:44]}  h6 {[%clk 0:01:35]} 32. g3 {[%clk 0:00:38]}  Re7 {[%clk 0:01:22]} 33. Kg2 {[%clk 0:00:24]}  Re8 {[%clk 0:01:10]} 34. Kh2 {[%clk 0:00:23]}  Qb2 {[%clk 0:00:58]} 35. Kg2 {[%clk 0:00:17]}  Rf8 {[%clk 0:00:57]} 36. Re2 {[%clk 0:00:17]}  Qxa3 {[%clk 0:00:57]} 37. Qxe4 {[%clk 0:00:16]}  Qd6 {[%clk 0:00:56]} 38. Qd4 {[%clk 0:00:14]}  Qf6 {[%clk 0:00:53]} 39. Qe4 {[%clk 0:00:09]}  Qf5 {[%clk 0:00:47]} 40. Qe7 {[%clk 0:00:05]}  Qxh5 {[%clk 0:00:46]} 41. Kg1 {[%clk 0:00:05]}  Qf7 {[%clk 0:00:43]} 42. Qh4 {[%clk 0:00:02]}  Qf3 {[%clk 0:00:41]} 43. Qe7 {[%clk 0:00:01]}  a4 {[%clk 0:00:38]} 44. Qe6+ {[%clk 0:00:00]}  Kh8 {[%clk 0:00:38]} 0-1


[Site "https://www.chess.com"]

[Event "Titled Tuesday Blitz August 22 Early 2023"]
[White "Rustemov, Alexander"]
[Black "Nazaretyan, Tigran"]
[WhiteFideId "4119002"]
[BlackFideId "24162345"]
[WhiteElo "2869"]
[BlackElo "2555"]
[Result "1-0"]
[Round "3"]
[TimeControl "180+1"]
[Date "2023.08.22"]
[WhiteClock "0:00:08"]
[BlackClock "0:00:00"]
[Board "59"]

1. d4 {[%clk 0:03:00]}  Nf6 {[%clk 0:02:59]} 2. c4 {[%clk 0:03:01]}  d6 {[%clk 0:02:57]} 3. Nf3 {[%clk 0:03:01]}  g6 {[%clk 0:02:54]} 4. g3 {[%clk 0:03:01]}  Bg7 {[%clk 0:02:54]} 5. Bg2 {[%clk 0:03:02]}  O-O {[%clk 0:02:55]} 6. O-O {[%clk 0:03:02]}  Nbd7 {[%clk 0:02:53]} 7. Nc3 {[%clk 0:03:02]}  e5 {[%clk 0:02:53]} 8. e4 {[%clk 0:03:03]}  c6 {[%clk 0:02:52]} 9. h3 {[%clk 0:03:03]}  a5 {[%clk 0:02:51]} 10. Be3 {[%clk 0:03:01]}  Re8 {[%clk 0:02:51]} 11. Qc2 {[%clk 0:02:59]}  a4 {[%clk 0:02:49]} 12. Rfe1 {[%clk 0:02:41]}  Qa5 {[%clk 0:02:48]} 13. Rad1 {[%clk 0:02:39]}  exd4 {[%clk 0:02:43]} 14. Nxd4 {[%clk 0:02:38]}  Nc5 {[%clk 0:02:39]} 15. Bf4 {[%clk 0:02:31]}  a3 {[%clk 0:02:28]} 16. b3 {[%clk 0:02:29]}  Bf8 {[%clk 0:02:22]} 17. Nde2 {[%clk 0:02:22]}  Qc7 {[%clk 0:02:18]} 18. g4 {[%clk 0:02:10]}  h5 {[%clk 0:02:16]} 19. f3 {[%clk 0:02:07]}  hxg4 {[%clk 0:02:01]} 20. hxg4 {[%clk 0:02:08]}  Nfd7 {[%clk 0:02:00]} 21. g5 {[%clk 0:01:48]}  Ne5 {[%clk 0:01:58]} 22. Kf2 {[%clk 0:01:36]}  Bg7 {[%clk 0:01:35]} 23. Rh1 {[%clk 0:01:34]}  Be6 {[%clk 0:01:30]} 24. Kg3 {[%clk 0:01:30]}  Rad8 {[%clk 0:01:22]} 25. Rh4 {[%clk 0:01:28]}  f5 {[%clk 0:01:17]} 26. gxf6 {[%clk 0:01:19]}  Bxf6 {[%clk 0:01:17]} 27. Rh6 {[%clk 0:01:17]}  Bg7 {[%clk 0:01:17]} 28. Rh2 {[%clk 0:01:07]}  Rf8 {[%clk 0:01:16]} 29. Bg5 {[%clk 0:00:56]}  Rd7 {[%clk 0:01:15]} 30. Nd4 {[%clk 0:00:46]}  Rdf7 {[%clk 0:01:11]} 31. b4 {[%clk 0:00:39]}  Bxc4 {[%clk 0:00:49]} 32. f4 {[%clk 0:00:32]}  Bd3 {[%clk 0:00:39]} 33. Qc1 {[%clk 0:00:25]}  Nc4 {[%clk 0:00:29]} 34. bxc5 {[%clk 0:00:22]}  Bxd4 {[%clk 0:00:26]} 35. Rxd3 {[%clk 0:00:22]}  dxc5 {[%clk 0:00:25]} 36. Ne2 {[%clk 0:00:22]}  Bf6 {[%clk 0:00:20]} 37. Bxf6 {[%clk 0:00:19]}  Rxf6 {[%clk 0:00:18]} 38. Qxc4+ {[%clk 0:00:20]}  R8f7 {[%clk 0:00:17]} 39. e5 {[%clk 0:00:15]}  g5 {[%clk 0:00:15]} 40. exf6 {[%clk 0:00:13]}  b5 {[%clk 0:00:14]} 41. Qe6 {[%clk 0:00:11]}  gxf4+ {[%clk 0:00:13]} 42. Nxf4 {[%clk 0:00:11]}  c4 {[%clk 0:00:08]} 43. Rd6 {[%clk 0:00:11]}  c3 {[%clk 0:00:07]} 44. Be4 {[%clk 0:00:10]}  b4 {[%clk 0:00:06]} 45. Kf3 {[%clk 0:00:09]}  c5 {[%clk 0:00:05]} 46. Rg2+ {[%clk 0:00:10]}  Kf8 {[%clk 0:00:04]} 47. Qg4 {[%clk 0:00:07]}  Rxf6 {[%clk 0:00:01]} 48. Qg8+ {[%clk 0:00:07]}  Ke7 {[%clk 0:00:01]} 49. Rg7+ {[%clk 0:00:04]}  Kxd6 {[%clk 0:00:01]} 50. Rxc7 {[%clk 0:00:05]}  Kxc7 {[%clk 0:00:02]} 51. Qg7+ {[%clk 0:00:05]}  Rf7 {[%clk 0:00:01]} 52. Qxf7+ {[%clk 0:00:05]}  Kb6 {[%clk 0:00:01]} 53. Qc4 {[%clk 0:00:05]}  c2 {[%clk 0:00:01]} 54. Bxc2 {[%clk 0:00:05]}  b3 {[%clk 0:00:01]} 55. Bxb3 {[%clk 0:00:06]}  Ka5 {[%clk 0:00:01]} 56. Qxc5+ {[%clk 0:00:06]}  Ka6 {[%clk 0:00:02]} 57. Qxa3+ {[%clk 0:00:06]}  Kb6 {[%clk 0:00:02]} 58. Qb4+ {[%clk 0:00:07]}  Kc7 {[%clk 0:00:02]} 59. Bd5 {[%clk 0:00:07]}  Kd7 {[%clk 0:00:02]} 60. Qb7+ {[%clk 0:00:07]}  Kd6 {[%clk 0:00:02]} 61. Qc6+ {[%clk 0:00:08]}  Ke5 {[%clk 0:00:02]} 62. Qe6+ {[%clk 0:00:07]}  Kd4 {[%clk 0:00:03]} 63. Qe4+ {[%clk 0:00:08]}  Kc3 {[%clk 0:00:03]} 64. Ne2+ {[%clk 0:00:07]}  Kb2 {[%clk 0:00:03]} 65. a4 {[%clk 0:00:06]}  Ka3 {[%clk 0:00:03]} 66. a5 {[%clk 0:00:06]}  Kb2 {[%clk 0:00:02]} 67. a6 {[%clk 0:00:07]}  Ka1 {[%clk 0:00:02]} 68. a7 {[%clk 0:00:07]}  Kb2 {[%clk 0:00:02]} 69. Qd4+ {[%clk 0:00:07]}  Kc2 {[%clk 0:00:02]} 70. Be4+ {[%clk 0:00:08]}  Kb3 {[%clk 0:00:00]} 71. Qc3+ {[%clk 0:00:08]} 1-0


[Site "https://www.chess.com"]

[Event "Titled Tuesday Blitz August 22 Early 2023"]
[White "Al-Tarboush, Ward"]
[Black "Kourkoulos-Arditis, Stamatis"]
[WhiteFideId "7601450"]
[BlackFideId "4221990"]
[WhiteElo "2517"]
[BlackElo "2725"]
[Result "1-0"]
[Round "3"]
[TimeControl "180+1"]
[Date "2023.08.22"]
[WhiteClock "0:02:17"]
[BlackClock "0:02:27"]
[Board "64"]

1. e4 {[%clk 0:03:00]}  c5 {[%clk 0:02:57]} 2. Nf3 {[%clk 0:03:01]}  e6 {[%clk 0:02:57]} 3. d4 {[%clk 0:03:01]}  cxd4 {[%clk 0:02:58]} 4. Nxd4 {[%clk 0:03:02]}  Nc6 {[%clk 0:02:59]} 5. Nc3 {[%clk 0:03:03]}  Qc7 {[%clk 0:02:57]} 6. Be3 {[%clk 0:03:03]}  a6 {[%clk 0:02:58]} 7. Qd2 {[%clk 0:03:03]}  Nf6 {[%clk 0:02:56]} 8. O-O-O {[%clk 0:03:04]}  Be7 {[%clk 0:02:55]} 9. f3 {[%clk 0:03:04]}  Nxd4 {[%clk 0:02:55]} 10. Qxd4 {[%clk 0:03:03]}  b5 {[%clk 0:02:54]} 11. g4 {[%clk 0:03:03]}  Bb7 {[%clk 0:02:54]} 12. g5 {[%clk 0:03:03]}  Nh5 {[%clk 0:02:54]} 13. Bh3 {[%clk 0:03:01]}  Rc8 {[%clk 0:02:50]} 14. Bg4 {[%clk 0:02:58]}  Nf4 {[%clk 0:02:44]} 15. Qxg7 {[%clk 0:02:35]}  Rf8 {[%clk 0:02:39]} 16. Bxf4 {[%clk 0:02:20]}  Qxf4+ {[%clk 0:02:38]} 17. Kb1 {[%clk 0:02:21]}  Qxg5 {[%clk 0:02:34]} 18. Qd4 {[%clk 0:02:18]}  Qc5 {[%clk 0:02:27]} 19. Qxd7# {[%clk 0:02:17]} 1-0


[Site "https://www.chess.com"]

[Event "Titled Tuesday Blitz August 22 Early 2023"]
[White "Sanduleac, Vasile"]
[Black "Timmermans, Mark"]
[WhiteFideId "13900161"]
[BlackFideId "1026399"]
[WhiteElo "2503"]
[BlackElo "2713"]
[Result "1-0"]
[Round "3"]
[TimeControl "180+1"]
[Date "2023.08.22"]
[WhiteClock "0:00:22"]
[BlackClock "0:00:12"]
[Board "65"]

1. e4 {[%clk 0:03:00]}  e5 {[%clk 0:02:58]} 2. Nf3 {[%clk 0:03:00]}  Nc6 {[%clk 0:02:58]} 3. Bc4 {[%clk 0:02:58]}  Nf6 {[%clk 0:02:57]} 4. d3 {[%clk 0:02:57]}  Be7 {[%clk 0:02:57]} 5. c3 {[%clk 0:02:56]}  O-O {[%clk 0:02:58]} 6. Nbd2 {[%clk 0:02:55]}  d5 {[%clk 0:02:57]} 7. Bb3 {[%clk 0:02:54]}  Bg4 {[%clk 0:02:53]} 8. h3 {[%clk 0:02:53]}  Bh5 {[%clk 0:02:54]} 9. Qe2 {[%clk 0:02:53]}  dxe4 {[%clk 0:02:53]} 10. dxe4 {[%clk 0:02:53]}  Nd7 {[%clk 0:02:53]} 11. Nf1 {[%clk 0:02:50]}  Nc5 {[%clk 0:02:53]} 12. Bc2 {[%clk 0:02:50]}  Bg6 {[%clk 0:02:49]} 13. Ng3 {[%clk 0:02:50]}  Ne6 {[%clk 0:02:43]} 14. Nf5 {[%clk 0:02:46]}  Nf4 {[%clk 0:02:22]} 15. Bxf4 {[%clk 0:02:43]}  exf4 {[%clk 0:02:23]} 16. O-O {[%clk 0:02:41]}  Re8 {[%clk 0:02:21]} 17. Rfd1 {[%clk 0:02:38]}  Qc8 {[%clk 0:02:19]} 18. Qd2 {[%clk 0:02:31]}  Bxf5 {[%clk 0:02:16]} 19. exf5 {[%clk 0:02:29]}  Bd6 {[%clk 0:02:17]} 20. Re1 {[%clk 0:02:15]}  Qd7 {[%clk 0:02:13]} 21. Qd5 {[%clk 0:02:14]}  Rab8 {[%clk 0:02:03]} 22. Bb3 {[%clk 0:02:09]}  Rf8 {[%clk 0:01:49]} 23. Rad1 {[%clk 0:02:07]}  Ne7 {[%clk 0:01:46]} 24. Qd4 {[%clk 0:01:57]}  Qxf5 {[%clk 0:01:39]} 25. Qxa7 {[%clk 0:01:56]}  Nc6 {[%clk 0:01:40]} 26. Qa4 {[%clk 0:01:54]}  Ra8 {[%clk 0:01:39]} 27. Qe4 {[%clk 0:01:52]}  Qh5 {[%clk 0:01:26]} 28. a3 {[%clk 0:01:46]}  h6 {[%clk 0:01:24]} 29. Bd5 {[%clk 0:01:41]}  Rab8 {[%clk 0:01:15]} 30. b4 {[%clk 0:01:38]}  Ra8 {[%clk 0:00:58]} 31. Ra1 {[%clk 0:01:25]}  Ne7 {[%clk 0:00:57]} 32. Bxb7 {[%clk 0:01:15]}  Ra7 {[%clk 0:00:57]} 33. Bc6 {[%clk 0:01:14]}  Kh8 {[%clk 0:00:54]} 34. Qd4 {[%clk 0:01:06]}  Nxc6 {[%clk 0:00:54]} 35. Qc4 {[%clk 0:01:03]}  Ne7 {[%clk 0:00:52]} 36. a4 {[%clk 0:01:02]}  Qd5 {[%clk 0:00:49]} 37. Qe2 {[%clk 0:00:59]}  Rfa8 {[%clk 0:00:46]} 38. a5 {[%clk 0:00:58]}  Ng6 {[%clk 0:00:41]} 39. Rad1 {[%clk 0:00:53]}  Qc6 {[%clk 0:00:40]} 40. Qd3 {[%clk 0:00:51]}  Rd8 {[%clk 0:00:32]} 41. Nd4 {[%clk 0:00:45]}  Qd5 {[%clk 0:00:31]} 42. Nb5 {[%clk 0:00:37]}  Qxd3 {[%clk 0:00:32]} 43. Rxd3 {[%clk 0:00:37]}  Raa8 {[%clk 0:00:33]} 44. Red1 {[%clk 0:00:36]}  Ne5 {[%clk 0:00:31]} 45. Rd4 {[%clk 0:00:36]}  Nc6 {[%clk 0:00:26]} 46. R4d3 {[%clk 0:00:35]}  Be5 {[%clk 0:00:22]} 47. Rxd8+ {[%clk 0:00:30]}  Nxd8 {[%clk 0:00:21]} 48. Rd5 {[%clk 0:00:26]}  f6 {[%clk 0:00:17]} 49. Rd7 {[%clk 0:00:24]}  Kg8 {[%clk 0:00:17]} 50. Nxc7 {[%clk 0:00:23]}  Rc8 {[%clk 0:00:13]} 51. Nd5 {[%clk 0:00:21]}  Kf8 {[%clk 0:00:13]} 52. a6 {[%clk 0:00:20]}  Nc6 {[%clk 0:00:13]} 53. b5 {[%clk 0:00:19]}  Na5 {[%clk 0:00:12]} 54. b6 {[%clk 0:00:19]}  f3 {[%clk 0:00:11]} 55. gxf3 {[%clk 0:00:19]}  Ra8 {[%clk 0:00:09]} 56. b7 {[%clk 0:00:18]}  Rxa6 {[%clk 0:00:09]} 57. Rd8+ {[%clk 0:00:17]}  Kf7 {[%clk 0:00:10]} 58. b8=Q {[%clk 0:00:17]}  Bxb8 {[%clk 0:00:10]} 59. Rxb8 {[%clk 0:00:18]}  Rd6 {[%clk 0:00:11]} 60. Rb5 {[%clk 0:00:18]}  Nc4 {[%clk 0:00:11]} 61. Ne3 {[%clk 0:00:19]}  Rd3 {[%clk 0:00:11]} 62. Nxc4 {[%clk 0:00:18]}  Rxc3 {[%clk 0:00:12]} 63. Ne3 {[%clk 0:00:19]}  Rd3 {[%clk 0:00:12]} 64. Kg2 {[%clk 0:00:19]}  h5 {[%clk 0:00:12]} 65. Rb7+ {[%clk 0:00:20]}  Kg8 {[%clk 0:00:12]} 66. h4 {[%clk 0:00:20]}  g6 {[%clk 0:00:13]} 67. Nc4 {[%clk 0:00:20]}  Rd4 {[%clk 0:00:13]} 68. Ne3 {[%clk 0:00:20]}  Rxh4 {[%clk 0:00:14]} 69. Kg3 {[%clk 0:00:21]}  Rd4 {[%clk 0:00:14]} 70. f4 {[%clk 0:00:22]}  f5 {[%clk 0:00:12]} 71. Kf3 {[%clk 0:00:23]}  Kf8 {[%clk 0:00:12]} 72. Rc7 {[%clk 0:00:23]}  Kg8 {[%clk 0:00:12]} 73. Nc4 {[%clk 0:00:23]}  h4 {[%clk 0:00:12]} 74. Ne5 {[%clk 0:00:23]}  Rd6 {[%clk 0:00:12]} 75. Rc6 {[%clk 0:00:23]}  Rd4 {[%clk 0:00:10]} 76. Rxg6+ {[%clk 0:00:20]}  Kh7 {[%clk 0:00:11]} 77. Rg5 {[%clk 0:00:20]}  Ra4 {[%clk 0:00:12]} 78. Rh5+ {[%clk 0:00:20]}  Kg7 {[%clk 0:00:12]} 79. Rxh4 {[%clk 0:00:21]}  Kf6 {[%clk 0:00:11]} 80. Kg2 {[%clk 0:00:21]}  Re4 {[%clk 0:00:11]} 81. Nf3 {[%clk 0:00:22]}  Rc4 {[%clk 0:00:11]} 82. Rh6+ {[%clk 0:00:22]}  Kg7 {[%clk 0:00:11]} 83. Rh4 {[%clk 0:00:23]}  Kg6 {[%clk 0:00:11]} 84. Kg3 {[%clk 0:00:23]}  Kf6 {[%clk 0:00:12]} 85. Rh6+ {[%clk 0:00:22]}  Kg7 {[%clk 0:00:12]} 86. Rd6 {[%clk 0:00:22]}  Ra4 {[%clk 0:00:12]} 87. Rd4 {[%clk 0:00:23]}  Ra3 {[%clk 0:00:11]} 88. Rd5 {[%clk 0:00:21]}  Kf6 {[%clk 0:00:11]} 89. Re5 {[%clk 0:00:22]}  Ra4 {[%clk 0:00:11]} 90. Kg2 {[%clk 0:00:22]}  Rxf4 {[%clk 0:00:11]} 91. Re3 {[%clk 0:00:22]}  Ra4 {[%clk 0:00:12]} 92. Nd2 {[%clk 0:00:22]}  Rd4 {[%clk 0:00:12]} 93. Nf3 {[%clk 0:00:23]}  Rb4 {[%clk 0:00:12]} 94. Rc3 {[%clk 0:00:23]}  Ra4 {[%clk 0:00:11]} 95. Kh3 {[%clk 0:00:23]}  Rb4 {[%clk 0:00:11]} 96. Kg3 {[%clk 0:00:23]}  Rg4+ {[%clk 0:00:12]} 97. Kh3 {[%clk 0:00:23]}  Rb4 {[%clk 0:00:13]} 98. Nh4 {[%clk 0:00:22]}  Kg5 {[%clk 0:00:12]} 99. Rg3+ {[%clk 0:00:21]}  Kf6 {[%clk 0:00:12]} 100. Rg6+ {[%clk 0:00:22]}  Ke5 {[%clk 0:00:12]} 101. Rc6 {[%clk 0:00:21]}  Rf4 {[%clk 0:00:12]} 102. Ng6+ {[%clk 0:00:21]}  Kd5 {[%clk 0:00:12]} 103. Nxf4+ {[%clk 0:00:21]}  Kxc6 {[%clk 0:00:13]} 104. Kh4 {[%clk 0:00:22]}  Kd6 {[%clk 0:00:13]} 105. Kg5 {[%clk 0:00:22]}  Ke5 {[%clk 0:00:14]} 106. f3 {[%clk 0:00:22]}  Kd4 {[%clk 0:00:14]} 107. Kxf5 {[%clk 0:00:22]}  Ke3 {[%clk 0:00:12]} 108. Kg4 {[%clk 0:00:22]} 1-0


[Site "https://www.chess.com"]